[Event "Titled Tuesday Blitz August 1 Early 2023"]
[White "Chor, Kevin"]
[Black "Swicarz, Maciej"]
[WhiteFideId "2090740"]
[BlackFideId "1113585"]
[WhiteElo "2531"]
[BlackElo "2424"]
[Result "0-1"]
[Round "10"]
[TimeControl "180+1"]
[Date "2023.08.01"]
[WhiteClock "0:00:01"]
[BlackClock "0:01:31"]
[Board "96"]

1. e4 {[%clk 0:03:00]}  c5 {[%clk 0:02:59]} 2. Nf3 {[%clk 0:03:00]}  d6 {[%clk 0:02:59]} 3. d4 {[%clk 0:03:01]}  cxd4 {[%clk 0:03:00]} 4. Nxd4 {[%clk 0:03:02]}  Nf6 {[%clk 0:03:00]} 5. Nc3 {[%clk 0:03:02]}  a6 {[%clk 0:03:01]} 6. Be2 {[%clk 0:03:02]}  e5 {[%clk 0:03:01]} 7. Nb3 {[%clk 0:03:02]}  Be7 {[%clk 0:03:01]} 8. O-O {[%clk 0:03:02]}  O-O {[%clk 0:03:00]} 9. Be3 {[%clk 0:03:00]}  Qc7 {[%clk 0:02:57]} 10. a4 {[%clk 0:02:30]}  b6 {[%clk 0:02:53]} 11. f4 {[%clk 0:02:17]}  Bb7 {[%clk 0:02:52]} 12. Bd3 {[%clk 0:02:12]}  Nbd7 {[%clk 0:02:51]} 13. f5 {[%clk 0:02:02]}  Nc5 {[%clk 0:02:46]} 14. Qf3 {[%clk 0:01:40]}  d5 {[%clk 0:02:41]} 15. Nxc5 {[%clk 0:01:31]}  Bxc5 {[%clk 0:02:32]} 16. Nxd5 {[%clk 0:01:25]}  Bxd5 {[%clk 0:02:30]} 17. exd5 {[%clk 0:01:24]}  e4 {[%clk 0:02:30]} 18. Bxe4 {[%clk 0:01:06]}  Nxe4 {[%clk 0:02:29]} 19. Rae1 {[%clk 0:00:57]}  Rfe8 {[%clk 0:02:27]} 20. Kh1 {[%clk 0:00:54]}  Bxe3 {[%clk 0:02:24]} 21. Rxe3 {[%clk 0:00:55]}  Nf6 {[%clk 0:02:23]} 22. Rc3 {[%clk 0:00:41]}  Qd7 {[%clk 0:02:20]} 23. Rd3 {[%clk 0:00:37]}  Qxa4 {[%clk 0:02:17]} 24. d6 {[%clk 0:00:30]}  Rad8 {[%clk 0:02:16]} 25. b3 {[%clk 0:00:26]}  Qd7 {[%clk 0:02:14]} 26. g4 {[%clk 0:00:23]}  Ne4 {[%clk 0:02:09]} 27. Rfd1 {[%clk 0:00:23]}  Qc6 {[%clk 0:02:03]} 28. d7 {[%clk 0:00:19]}  Re7 {[%clk 0:01:56]} 29. Kg2 {[%clk 0:00:12]}  Qxc2+ {[%clk 0:01:52]} 30. Kf1 {[%clk 0:00:12]}  Kf8 {[%clk 0:01:47]} 31. h3 {[%clk 0:00:08]}  Qc6 {[%clk 0:01:39]} 32. Rd6 {[%clk 0:00:01]}  Nd2+ {[%clk 0:01:31]} 0-1


[Site "https://www.chess.com"]

[Event "Titled Tuesday Blitz August 1 Early 2023"]
[White "Khamdamova, Afruza"]
[Black "Atanasov, Radislav"]
[WhiteFideId "14210444"]
[BlackFideId "2901471"]
[WhiteElo "2497"]
[BlackElo "2280"]
[Result "0-1"]
[Round "10"]
[TimeControl "180+1"]
[Date "2023.08.01"]
[WhiteClock "0:00:00"]
[BlackClock "0:00:24"]
[Board "102"]

1. e4 {[%clk 0:03:00]}  e5 {[%clk 0:02:59]} 2. Nf3 {[%clk 0:03:00]}  Nc6 {[%clk 0:03:00]} 3. Bb5 {[%clk 0:03:00]}  a6 {[%clk 0:02:59]} 4. Ba4 {[%clk 0:03:00]}  Nf6 {[%clk 0:02:59]} 5. O-O {[%clk 0:03:00]}  Nxe4 {[%clk 0:02:59]} 6. d4 {[%clk 0:02:58]}  b5 {[%clk 0:03:00]} 7. Bb3 {[%clk 0:02:59]}  d5 {[%clk 0:03:00]} 8. dxe5 {[%clk 0:02:59]}  Be6 {[%clk 0:03:00]} 9. c3 {[%clk 0:02:59]}  Bc5 {[%clk 0:02:59]} 10. Nbd2 {[%clk 0:02:58]}  O-O {[%clk 0:02:59]} 11. Qe2 {[%clk 0:02:52]}  Bf5 {[%clk 0:02:58]} 12. Bc2 {[%clk 0:02:23]}  Nxc3 {[%clk 0:02:53]} 13. bxc3 {[%clk 0:02:23]}  Bxc2 {[%clk 0:02:53]} 14. Nb3 {[%clk 0:02:19]}  Bxb3 {[%clk 0:02:52]} 15. axb3 {[%clk 0:02:19]}  Re8 {[%clk 0:02:22]} 16. Bf4 {[%clk 0:02:12]}  Bd6 {[%clk 0:02:10]} 17. c4 {[%clk 0:01:55]}  bxc4 {[%clk 0:02:07]} 18. bxc4 {[%clk 0:01:55]}  dxc4 {[%clk 0:01:53]} 19. Rfd1 {[%clk 0:01:51]}  Qe7 {[%clk 0:01:41]} 20. Qxc4 {[%clk 0:01:12]}  Nxe5 {[%clk 0:01:39]} 21. Bxe5 {[%clk 0:01:12]}  Bxe5 {[%clk 0:01:39]} 22. Qc6 {[%clk 0:01:11]}  Bxa1 {[%clk 0:01:36]} 23. Rxa1 {[%clk 0:01:10]}  Qe4 {[%clk 0:01:25]} 24. Qxc7 {[%clk 0:01:02]}  a5 {[%clk 0:01:25]} 25. h3 {[%clk 0:00:58]}  a4 {[%clk 0:01:24]} 26. Ng5 {[%clk 0:00:54]}  Qd5 {[%clk 0:01:04]} 27. Qf4 {[%clk 0:00:35]}  a3 {[%clk 0:01:02]} 28. Nf3 {[%clk 0:00:28]}  a2 {[%clk 0:01:00]} 29. Kh2 {[%clk 0:00:25]}  Reb8 {[%clk 0:00:57]} 30. Nd2 {[%clk 0:00:20]}  h6 {[%clk 0:00:55]} 31. Qe3 {[%clk 0:00:20]}  Rb2 {[%clk 0:00:50]} 32. Nf3 {[%clk 0:00:07]}  Rb1 {[%clk 0:00:45]} 33. Qc3 {[%clk 0:00:07]}  Rxa1 {[%clk 0:00:43]} 34. Qxa1 {[%clk 0:00:07]}  Qb5 {[%clk 0:00:38]} 35. Nd2 {[%clk 0:00:02]}  Qe2 {[%clk 0:00:34]} 36. Nb3 {[%clk 0:00:02]}  Qxf2 {[%clk 0:00:31]} 37. Qc1 {[%clk 0:00:01]}  Qb6 {[%clk 0:00:25]} 38. Na1 {[%clk 0:00:00]}  Qd6+ {[%clk 0:00:24]} 0-1


[Site "https://www.chess.com"]

[Event "Titled Tuesday Blitz August 1 Early 2023"]
[White "Tsyhanchuk, Stanislav"]
[Black "Bilan, Danila"]
[WhiteFideId "13505130"]
[BlackFideId "24161918"]
[WhiteElo "2420"]
[BlackElo "2558"]
[Result "1-0"]
[Round "10"]
[TimeControl "180+1"]
[Date "2023.08.01"]
[WhiteClock "0:00:16"]
[BlackClock "0:00:07"]
[Board "105"]

1. c4 {[%clk 0:02:57]}  c6 {[%clk 0:02:59]} 2. Nc3 {[%clk 0:02:57]}  d5 {[%clk 0:03:00]} 3. e3 {[%clk 0:02:58]}  Nf6 {[%clk 0:03:00]} 4. Nf3 {[%clk 0:02:58]}  e6 {[%clk 0:02:56]} 5. d4 {[%clk 0:02:57]}  Nbd7 {[%clk 0:02:56]} 6. Bd3 {[%clk 0:02:55]}  dxc4 {[%clk 0:02:51]} 7. Bxc4 {[%clk 0:02:55]}  b5 {[%clk 0:02:52]} 8. Bd3 {[%clk 0:02:55]}  b4 {[%clk 0:02:52]} 9. Ne4 {[%clk 0:02:51]}  Nxe4 {[%clk 0:02:52]} 10. Bxe4 {[%clk 0:02:52]}  Bb7 {[%clk 0:02:53]} 11. O-O {[%clk 0:02:51]}  Bd6 {[%clk 0:02:44]} 12. Qa4 {[%clk 0:02:49]}  Qb6 {[%clk 0:02:39]} 13. Bd2 {[%clk 0:02:47]}  O-O {[%clk 0:02:27]} 14. Rac1 {[%clk 0:02:46]}  Rac8 {[%clk 0:02:16]} 15. h4 {[%clk 0:02:44]}  Nf6 {[%clk 0:02:05]} 16. Bb1 {[%clk 0:02:37]}  c5 {[%clk 0:02:05]} 17. dxc5 {[%clk 0:02:32]}  Bxc5 {[%clk 0:01:59]} 18. Nd4 {[%clk 0:02:29]}  Ne4 {[%clk 0:01:51]} 19. Be1 {[%clk 0:02:17]}  e5 {[%clk 0:01:13]} 20. Nf3 {[%clk 0:02:12]}  f6 {[%clk 0:00:40]} 21. Nd2 {[%clk 0:01:39]}  Nd6 {[%clk 0:00:09]} 22. Nb3 {[%clk 0:01:29]}  Ne4 {[%clk 0:00:06]} 23. Nxc5 {[%clk 0:01:25]}  Nxc5 {[%clk 0:00:05]} 24. Qd1 {[%clk 0:01:24]}  Ba6 {[%clk 0:00:05]} 25. Qh5 {[%clk 0:01:18]}  e4 {[%clk 0:00:05]} 26. Bxb4 {[%clk 0:00:55]}  Qxb4 {[%clk 0:00:05]} 27. Rfd1 {[%clk 0:00:55]}  Bd3 {[%clk 0:00:05]} 28. Qf5 {[%clk 0:00:46]}  g6 {[%clk 0:00:04]} 29. Qd5+ {[%clk 0:00:44]}  Kg7 {[%clk 0:00:05]} 30. Bxd3 {[%clk 0:00:43]}  exd3 {[%clk 0:00:03]} 31. a3 {[%clk 0:00:42]}  Qb6 {[%clk 0:00:03]} 32. b4 {[%clk 0:00:41]}  Rfd8 {[%clk 0:00:03]} 33. bxc5 {[%clk 0:00:38]}  Rxd5 {[%clk 0:00:03]} 34. cxb6 {[%clk 0:00:38]}  Rxc1 {[%clk 0:00:03]} 35. Rxc1 {[%clk 0:00:39]}  axb6 {[%clk 0:00:04]} 36. Kf1 {[%clk 0:00:38]}  Kf7 {[%clk 0:00:04]} 37. Rd1 {[%clk 0:00:35]}  Ke6 {[%clk 0:00:05]} 38. Ke1 {[%clk 0:00:36]}  Ke5 {[%clk 0:00:04]} 39. Kd2 {[%clk 0:00:36]}  f5 {[%clk 0:00:04]} 40. Rc1 {[%clk 0:00:35]}  Ra5 {[%clk 0:00:04]} 41. Rc3 {[%clk 0:00:35]}  h6 {[%clk 0:00:02]} 42. Kxd3 {[%clk 0:00:33]}  Rd5+ {[%clk 0:00:03]} 43. Ke2 {[%clk 0:00:32]}  g5 {[%clk 0:00:04]} 44. hxg5 {[%clk 0:00:32]}  hxg5 {[%clk 0:00:04]} 45. Rc4 {[%clk 0:00:31]}  Ra5 {[%clk 0:00:05]} 46. a4 {[%clk 0:00:31]}  Kd5 {[%clk 0:00:04]} 47. Rb4 {[%clk 0:00:30]}  Kc5 {[%clk 0:00:04]} 48. Rd4 {[%clk 0:00:30]}  b5 {[%clk 0:00:04]} 49. axb5 {[%clk 0:00:30]}  Rxb5 {[%clk 0:00:04]} 50. g4 {[%clk 0:00:29]}  fxg4 {[%clk 0:00:03]} 51. Rxg4 {[%clk 0:00:30]}  Kd6 {[%clk 0:00:03]} 52. Kf3 {[%clk 0:00:30]}  Ke6 {[%clk 0:00:03]} 53. Ke4 {[%clk 0:00:27]}  Rb4+ {[%clk 0:00:03]} 54. Kf3 {[%clk 0:00:26]}  Rb5 {[%clk 0:00:04]} 55. Re4+ {[%clk 0:00:26]}  Kf5 {[%clk 0:00:04]} 56. Rd4 {[%clk 0:00:26]}  Rc5 {[%clk 0:00:04]} 57. e4+ {[%clk 0:00:24]}  Ke5 {[%clk 0:00:03]} 58. Rd3 {[%clk 0:00:15]}  Kf6 {[%clk 0:00:02]} 59. Kg4 {[%clk 0:00:14]}  Rc4 {[%clk 0:00:02]} 60. f3 {[%clk 0:00:14]}  Rc6 {[%clk 0:00:02]} 61. Rd5 {[%clk 0:00:14]}  Re6 {[%clk 0:00:02]} 62. Rf5+ {[%clk 0:00:14]}  Kg6 {[%clk 0:00:02]} 63. Rxg5+ {[%clk 0:00:15]}  Kf7 {[%clk 0:00:03]} 64. Kf4 {[%clk 0:00:15]}  Ra6 {[%clk 0:00:03]} 65. Kf5 {[%clk 0:00:14]}  Ra3 {[%clk 0:00:04]} 66. f4 {[%clk 0:00:14]}  Ra5+ {[%clk 0:00:04]} 67. e5 {[%clk 0:00:15]}  Ra6 {[%clk 0:00:05]} 68. Rh5 {[%clk 0:00:15]}  Kg7 {[%clk 0:00:05]} 69. Rh1 {[%clk 0:00:15]}  Ra5 {[%clk 0:00:05]} 70. Rb1 {[%clk 0:00:16]}  Kf7 {[%clk 0:00:06]} 71. Rb7+ {[%clk 0:00:16]}  Kf8 {[%clk 0:00:07]} 72. Kf6 {[%clk 0:00:16]}  Ra7 {[%clk 0:00:07]} 73. Rb8# {[%clk 0:00:16]} 1-0


[Site "https://www.chess.com"]

[Event "Titled Tuesday Blitz August 1 Early 2023"]
[White "Ambartsumova, Karina"]
[Black "FREDERICKtheMATE"]
[WhiteFideId "4166299"]
[WhiteElo "2554"]
[BlackElo "2421"]
[Result "1-0"]
[Round "10"]
[TimeControl "180+1"]
[Date "2023.08.01"]
[WhiteClock "0:00:01"]
[BlackClock "0:00:00"]
[Board "106"]

1. c4 {[%clk 0:03:00]}  c5 {[%clk 0:03:00]} 2. Nf3 {[%clk 0:02:58]}  g6 {[%clk 0:03:00]} 3. d4 {[%clk 0:02:58]}  cxd4 {[%clk 0:02:59]} 4. Nxd4 {[%clk 0:02:59]}  Bg7 {[%clk 0:02:59]} 5. e4 {[%clk 0:02:59]}  Nc6 {[%clk 0:02:57]} 6. Nc2 {[%clk 0:02:59]}  Nf6 {[%clk 0:02:56]} 7. Nc3 {[%clk 0:02:59]}  O-O {[%clk 0:02:56]} 8. Be2 {[%clk 0:03:00]}  b6 {[%clk 0:02:56]} 9. O-O {[%clk 0:02:59]}  Bb7 {[%clk 0:02:57]} 10. Bg5 {[%clk 0:02:59]}  Rc8 {[%clk 0:02:57]} 11. Rc1 {[%clk 0:02:59]}  Ne5 {[%clk 0:02:53]} 12. Bxf6 {[%clk 0:01:42]}  Bxf6 {[%clk 0:02:54]} 13. Ne3 {[%clk 0:01:43]}  d6 {[%clk 0:02:50]} 14. f4 {[%clk 0:01:40]}  Nc6 {[%clk 0:02:49]} 15. e5 {[%clk 0:01:37]}  dxe5 {[%clk 0:02:46]} 16. Ncd5 {[%clk 0:01:13]}  exf4 {[%clk 0:02:42]} 17. Nxf6+ {[%clk 0:01:11]}  exf6 {[%clk 0:02:43]} 18. Nd5 {[%clk 0:01:12]}  Ne5 {[%clk 0:02:39]} 19. Rxf4 {[%clk 0:00:54]}  Bxd5 {[%clk 0:02:38]} 20. Rd4 {[%clk 0:00:54]}  Qe7 {[%clk 0:02:27]} 21. Rxd5 {[%clk 0:00:53]}  Rfd8 {[%clk 0:02:27]} 22. Bf1 {[%clk 0:00:51]}  a5 {[%clk 0:02:22]} 23. h3 {[%clk 0:00:49]}  Rxd5 {[%clk 0:02:15]} 24. Qxd5 {[%clk 0:00:49]}  Rd8 {[%clk 0:02:13]} 25. Qe4 {[%clk 0:00:42]}  Qc5+ {[%clk 0:02:10]} 26. Kh1 {[%clk 0:00:40]}  Rd2 {[%clk 0:02:08]} 27. Qf4 {[%clk 0:00:32]}  Rxb2 {[%clk 0:01:55]} 28. Qxf6 {[%clk 0:00:29]}  Rf2 {[%clk 0:01:52]} 29. Qd8+ {[%clk 0:00:29]}  Kg7 {[%clk 0:01:51]} 30. Rd1 {[%clk 0:00:28]}  Nxc4 {[%clk 0:01:37]} 31. Bxc4 {[%clk 0:00:28]}  Qxc4 {[%clk 0:01:36]} 32. Qxb6 {[%clk 0:00:28]}  Rxa2 {[%clk 0:01:33]} 33. Qa7 {[%clk 0:00:18]}  Qe4 {[%clk 0:01:28]} 34. Rg1 {[%clk 0:00:16]}  a4 {[%clk 0:01:26]} 35. Qc5 {[%clk 0:00:13]}  Rc2 {[%clk 0:01:24]} 36. Qa3 {[%clk 0:00:12]}  Qd4 {[%clk 0:01:18]} 37. Ra1 {[%clk 0:00:11]}  Rc4 {[%clk 0:01:10]} 38. Rf1 {[%clk 0:00:09]}  Rc3 {[%clk 0:00:57]} 39. Qe7 {[%clk 0:00:09]}  Qc4 {[%clk 0:00:44]} 40. Qf6+ {[%clk 0:00:09]}  Kh6 {[%clk 0:00:33]} 41. Rf4 {[%clk 0:00:09]}  Rc1+ {[%clk 0:00:31]} 42. Kh2 {[%clk 0:00:09]}  Qc7 {[%clk 0:00:30]} 43. g3 {[%clk 0:00:02]}  Rc2+ {[%clk 0:00:27]} 44. Kg1 {[%clk 0:00:02]}  Qc5+ {[%clk 0:00:21]} 45. Kf1 {[%clk 0:00:03]}  Rc1+ {[%clk 0:00:17]} 46. Kg2 {[%clk 0:00:03]}  Qg1+ {[%clk 0:00:15]} 47. Kf3 {[%clk 0:00:04]}  Rf1+ {[%clk 0:00:15]} 48. Kg4 {[%clk 0:00:04]}  Rxf4+ {[%clk 0:00:08]} 49. Qxf4+ {[%clk 0:00:05]}  Kg7 {[%clk 0:00:08]} 50. Qxa4 {[%clk 0:00:06]}  h5+ {[%clk 0:00:06]} 51. Kh4 {[%clk 0:00:06]}  Qc1 {[%clk 0:00:03]} 52. Qd4+ {[%clk 0:00:03]}  Kh7 {[%clk 0:00:03]} 53. Qf6 {[%clk 0:00:02]}  Qc4+ {[%clk 0:00:02]} 54. g4 {[%clk 0:00:02]}  hxg4 {[%clk 0:00:01]} 55. hxg4 {[%clk 0:00:03]}  Qc7 {[%clk 0:00:00]} 56. Kg5 {[%clk 0:00:01]} 1-0


[Site "https://www.chess.com"]

[Event "Titled Tuesday Blitz August 1 Early 2023"]
[White "Malka, Samuel"]
[Black "Castella Garcia, Fausto"]
[WhiteFideId "20643675"]
[BlackFideId "3501922"]
[WhiteElo "2497"]
[BlackElo "2410"]
[Result "1-0"]
[Round "10"]
[TimeControl "180+1"]
[Date "2023.08.01"]
[WhiteClock "0:00:13"]
[BlackClock "0:00:05"]
[Board "109"]

1. d4 {[%clk 0:03:00]}  Nf6 {[%clk 0:02:58]} 2. c4 {[%clk 0:03:00]}  e5 {[%clk 0:02:56]} 3. dxe5 {[%clk 0:02:59]}  Ng4 {[%clk 0:02:56]} 4. e3 {[%clk 0:03:00]}  Nxe5 {[%clk 0:02:54]} 5. f4 {[%clk 0:03:00]}  Nec6 {[%clk 0:02:53]} 6. Nf3 {[%clk 0:03:01]}  Bc5 {[%clk 0:02:52]} 7. Bd3 {[%clk 0:02:55]}  d6 {[%clk 0:02:50]} 8. Nc3 {[%clk 0:02:33]}  Nd7 {[%clk 0:02:46]} 9. O-O {[%clk 0:02:26]}  Nf6 {[%clk 0:02:41]} 10. h3 {[%clk 0:02:14]}  a5 {[%clk 0:02:39]} 11. Kh2 {[%clk 0:02:11]}  h5 {[%clk 0:02:38]} 12. Ng5 {[%clk 0:02:06]}  Qe7 {[%clk 0:02:08]} 13. a3 {[%clk 0:01:38]}  Bd7 {[%clk 0:01:32]} 14. Nd5 {[%clk 0:01:11]}  Nxd5 {[%clk 0:01:30]} 15. cxd5 {[%clk 0:01:12]}  Nd8 {[%clk 0:01:13]} 16. Qf3 {[%clk 0:01:04]}  f5 {[%clk 0:01:02]} 17. Bd2 {[%clk 0:00:50]}  Nf7 {[%clk 0:01:01]} 18. Ne6 {[%clk 0:00:51]}  Bxe6 {[%clk 0:00:58]} 19. dxe6 {[%clk 0:00:52]}  Qxe6 {[%clk 0:00:58]} 20. Qxb7 {[%clk 0:00:52]}  O-O {[%clk 0:00:57]} 21. Qf3 {[%clk 0:00:38]}  d5 {[%clk 0:00:53]} 22. Rfe1 {[%clk 0:00:36]}  g6 {[%clk 0:00:51]} 23. Bc3 {[%clk 0:00:35]}  Bd6 {[%clk 0:00:48]} 24. Rad1 {[%clk 0:00:31]}  c6 {[%clk 0:00:45]} 25. Qg3 {[%clk 0:00:29]}  Kh7 {[%clk 0:00:44]} 26. Qf3 {[%clk 0:00:27]}  Bc7 {[%clk 0:00:38]} 27. Bb1 {[%clk 0:00:27]}  Nd6 {[%clk 0:00:38]} 28. Be5 {[%clk 0:00:25]}  Ra7 {[%clk 0:00:35]} 29. Rc1 {[%clk 0:00:25]}  Ne4 {[%clk 0:00:33]} 30. Bxc7 {[%clk 0:00:22]}  Rxc7 {[%clk 0:00:32]} 31. Bxe4 {[%clk 0:00:23]}  fxe4 {[%clk 0:00:31]} 32. Qg3 {[%clk 0:00:21]}  Rf5 {[%clk 0:00:22]} 33. Red1 {[%clk 0:00:20]}  Rg7 {[%clk 0:00:17]} 34. h4 {[%clk 0:00:17]}  Rc7 {[%clk 0:00:13]} 35. Rc5 {[%clk 0:00:17]}  a4 {[%clk 0:00:10]} 36. Rdc1 {[%clk 0:00:18]}  Qd6 {[%clk 0:00:11]} 37. Qf2 {[%clk 0:00:16]}  Rf8 {[%clk 0:00:10]} 38. Qd2 {[%clk 0:00:16]}  Rb8 {[%clk 0:00:09]} 39. g3 {[%clk 0:00:16]}  Rb3 {[%clk 0:00:09]} 40. R1c3 {[%clk 0:00:15]}  Qe6 {[%clk 0:00:07]} 41. Rxb3 {[%clk 0:00:15]}  axb3 {[%clk 0:00:08]} 42. Qc3 {[%clk 0:00:16]}  Qg4 {[%clk 0:00:08]} 43. Qd2 {[%clk 0:00:14]}  Qxf4 {[%clk 0:00:05]} 44. exf4 {[%clk 0:00:13]} 1-0


[Site "https://www.chess.com"]

[Event "Titled Tuesday Blitz August 1 Early 2023"]
[White "Ljukin, Sergei"]
[Black "Bueno, Alfeu Junior Varela"]
[WhiteFideId "14102200"]
[BlackFideId "2108879"]
[WhiteElo "2488"]
[BlackElo "2395"]
[Result "1-0"]
[Round "10"]
[TimeControl "180+1"]
[Date "2023.08.01"]
[WhiteClock "0:00:06"]
[BlackClock "0:00:00"]
[Board "112"]

1. e4 {[%clk 0:02:46]}  e6 {[%clk 0:03:00]} 2. d4 {[%clk 0:02:46]}  d5 {[%clk 0:03:00]} 3. Nc3 {[%clk 0:02:46]}  Nf6 {[%clk 0:02:59]} 4. Bg5 {[%clk 0:02:45]}  Be7 {[%clk 0:02:59]} 5. e5 {[%clk 0:02:46]}  Nfd7 {[%clk 0:03:00]} 6. h4 {[%clk 0:02:46]}  O-O {[%clk 0:03:00]} 7. Bd3 {[%clk 0:02:25]}  c5 {[%clk 0:02:51]} 8. f4 {[%clk 0:02:18]}  cxd4 {[%clk 0:02:38]} 9. Nce2 {[%clk 0:02:15]}  Nc6 {[%clk 0:02:37]} 10. Bxe7 {[%clk 0:02:07]}  Qxe7 {[%clk 0:02:34]} 11. Nf3 {[%clk 0:02:08]}  f6 {[%clk 0:02:32]} 12. exf6 {[%clk 0:02:03]}  Qxf6 {[%clk 0:02:32]} 13. O-O {[%clk 0:02:00]}  e5 {[%clk 0:02:08]} 14. fxe5 {[%clk 0:01:57]}  Ndxe5 {[%clk 0:02:05]} 15. Nexd4 {[%clk 0:01:57]}  Bg4 {[%clk 0:01:40]} 16. Nxe5 {[%clk 0:01:33]}  Qxe5 {[%clk 0:01:27]} 17. Qxg4 {[%clk 0:01:21]}  Qe3+ {[%clk 0:01:16]} 18. Kh2 {[%clk 0:01:04]}  Qxd4 {[%clk 0:01:15]} 19. Qxd4 {[%clk 0:00:52]}  Nxd4 {[%clk 0:01:16]} 20. Rxf8+ {[%clk 0:00:50]}  Rxf8 {[%clk 0:01:09]} 21. Re1 {[%clk 0:00:31]}  Nc6 {[%clk 0:00:53]} 22. Kg3 {[%clk 0:00:28]}  g6 {[%clk 0:00:46]} 23. Re6 {[%clk 0:00:27]}  Rd8 {[%clk 0:00:38]} 24. h5 {[%clk 0:00:25]}  gxh5 {[%clk 0:00:35]} 25. Rh6 {[%clk 0:00:23]}  Rd7 {[%clk 0:00:33]} 26. Rxh5 {[%clk 0:00:23]}  Nb4 {[%clk 0:00:26]} 27. Bf5 {[%clk 0:00:18]}  Rg7+ {[%clk 0:00:26]} 28. Kf3 {[%clk 0:00:16]}  Nxa2 {[%clk 0:00:11]} 29. Be6+ {[%clk 0:00:14]}  Kf8 {[%clk 0:00:11]} 30. Bxd5 {[%clk 0:00:14]}  Nb4 {[%clk 0:00:09]} 31. Be4 {[%clk 0:00:13]}  Kg8 {[%clk 0:00:04]} 32. c3 {[%clk 0:00:12]}  Na6 {[%clk 0:00:04]} 33. Rd5 {[%clk 0:00:10]}  b6 {[%clk 0:00:02]} 34. Rd8+ {[%clk 0:00:10]}  Kf7 {[%clk 0:00:02]} 35. Rd7+ {[%clk 0:00:09]}  Kf6 {[%clk 0:00:03]} 36. Rd5 {[%clk 0:00:08]}  Nc5 {[%clk 0:00:03]} 37. Bc2 {[%clk 0:00:07]}  Re7 {[%clk 0:00:03]} 38. Rd6+ {[%clk 0:00:07]}  Kg7 {[%clk 0:00:03]} 39. Rd5 {[%clk 0:00:06]}  Ne6 {[%clk 0:00:03]} 40. Kf2 {[%clk 0:00:04]}  Kf6 {[%clk 0:00:03]} 41. Rd6 {[%clk 0:00:04]}  Ke5 {[%clk 0:00:03]} 42. Rd3 {[%clk 0:00:04]}  Nf4 {[%clk 0:00:03]} 43. Re3+ {[%clk 0:00:04]}  Kf6 {[%clk 0:00:04]} 44. Rxe7 {[%clk 0:00:04]}  Kxe7 {[%clk 0:00:05]} 45. Bxh7 {[%clk 0:00:04]}  Nd5 {[%clk 0:00:03]} 46. Ke2 {[%clk 0:00:02]}  Nf6 {[%clk 0:00:02]} 47. Bd3 {[%clk 0:00:02]}  Kd6 {[%clk 0:00:02]} 48. Kf3 {[%clk 0:00:02]}  Ke5 {[%clk 0:00:03]} 49. g4 {[%clk 0:00:02]}  Ne8 {[%clk 0:00:02]} 50. g5 {[%clk 0:00:02]}  Nd6 {[%clk 0:00:02]} 51. g6 {[%clk 0:00:02]}  Ne8 {[%clk 0:00:02]} 52. Ke3 {[%clk 0:00:02]}  Nf6 {[%clk 0:00:02]} 53. Bc2 {[%clk 0:00:02]}  Nd5+ {[%clk 0:00:02]} 54. Kd2 {[%clk 0:00:02]}  Ne7 {[%clk 0:00:02]} 55. Kd3 {[%clk 0:00:03]}  Nxg6 {[%clk 0:00:01]} 56. Kc4 {[%clk 0:00:03]}  Ne7 {[%clk 0:00:01]} 57. Kb5 {[%clk 0:00:03]}  Kd6 {[%clk 0:00:02]} 58. Ka6 {[%clk 0:00:04]}  Nc6 {[%clk 0:00:02]} 59. Kb7 {[%clk 0:00:03]}  Kc5 {[%clk 0:00:02]} 60. Be4 {[%clk 0:00:03]}  Na5+ {[%clk 0:00:02]} 61. Kxa7 {[%clk 0:00:03]}  Nc4 {[%clk 0:00:03]} 62. b4+ {[%clk 0:00:03]}  Kd6 {[%clk 0:00:02]} 63. Bd3 {[%clk 0:00:04]}  Nb2 {[%clk 0:00:02]} 64. Be2 {[%clk 0:00:04]}  b5 {[%clk 0:00:01]} 65. Bxb5 {[%clk 0:00:04]}  Nd1 {[%clk 0:00:01]} 66. c4 {[%clk 0:00:04]}  Ne3 {[%clk 0:00:01]} 67. c5+ {[%clk 0:00:05]}  Kc7 {[%clk 0:00:01]} 68. Bd3 {[%clk 0:00:04]}  Nd5 {[%clk 0:00:01]} 69. b5 {[%clk 0:00:05]}  Nb4 {[%clk 0:00:01]} 70. b6+ {[%clk 0:00:05]}  Kc6 {[%clk 0:00:01]} 71. Be4+ {[%clk 0:00:05]}  Kxc5 {[%clk 0:00:01]} 72. b7 {[%clk 0:00:06]}  Nd5 {[%clk 0:00:00]} 73. Bxd5 {[%clk 0:00:06]} 1-0


[Site "https://www.chess.com"]

[Event "Titled Tuesday Blitz August 1 Early 2023"]
[White "D`Arruda, Ricardo D."]
[Black "Mikhalsky, Vladimir"]
[WhiteFideId "100692"]
[BlackFideId "14144352"]
[WhiteElo "2471"]
[BlackElo "2389"]
[Result "0-1"]
[Round "10"]
[TimeControl "180+1"]
[Date "2023.08.01"]
[WhiteClock "0:00:48"]
[BlackClock "0:01:03"]
[Board "113"]

1. Nf3 {[%clk 0:01:26]}  c5 {[%clk 0:02:59]} 2. d4 {[%clk 0:01:27]}  cxd4 {[%clk 0:02:58]} 3. Nxd4 {[%clk 0:01:28]}  d5 {[%clk 0:02:56]} 4. g3 {[%clk 0:01:28]}  e5 {[%clk 0:02:56]} 5. Nf3 {[%clk 0:01:28]}  Nc6 {[%clk 0:02:54]} 6. Bg2 {[%clk 0:01:28]}  f6 {[%clk 0:02:53]} 7. O-O {[%clk 0:01:28]}  Be6 {[%clk 0:02:53]} 8. c4 {[%clk 0:01:26]}  dxc4 {[%clk 0:02:47]} 9. Qa4 {[%clk 0:01:26]}  Qa5 {[%clk 0:02:44]} 10. Nc3 {[%clk 0:01:22]}  Qxa4 {[%clk 0:02:40]} 11. Nxa4 {[%clk 0:01:23]}  Rc8 {[%clk 0:02:32]} 12. Be3 {[%clk 0:01:22]}  b5 {[%clk 0:02:22]} 13. Nc5 {[%clk 0:01:22]}  Bxc5 {[%clk 0:02:13]} 14. Bxc5 {[%clk 0:01:23]}  Nge7 {[%clk 0:02:10]} 15. a4 {[%clk 0:01:23]}  b4 {[%clk 0:02:08]} 16. Rfd1 {[%clk 0:01:19]}  Kf7 {[%clk 0:02:03]} 17. Rd6 {[%clk 0:01:16]}  Rhd8 {[%clk 0:02:03]} 18. Rad1 {[%clk 0:01:16]}  Rxd6 {[%clk 0:01:59]} 19. Rxd6 {[%clk 0:01:17]}  Rd8 {[%clk 0:01:43]} 20. Rxd8 {[%clk 0:01:15]}  Nxd8 {[%clk 0:01:42]} 21. Bxb4 {[%clk 0:01:16]}  Ndc6 {[%clk 0:01:37]} 22. Bc3 {[%clk 0:01:16]}  Nd5 {[%clk 0:01:36]} 23. Nd2 {[%clk 0:01:15]}  Nxc3 {[%clk 0:01:30]} 24. bxc3 {[%clk 0:01:16]}  Na5 {[%clk 0:01:29]} 25. Kf1 {[%clk 0:01:11]}  f5 {[%clk 0:01:28]} 26. Ke1 {[%clk 0:01:11]}  Ke7 {[%clk 0:01:23]} 27. Nf3 {[%clk 0:01:10]}  Kd6 {[%clk 0:01:21]} 28. Ng5 {[%clk 0:01:09]}  Bg8 {[%clk 0:01:21]} 29. Bh3 {[%clk 0:01:08]}  g6 {[%clk 0:01:12]} 30. Kd2 {[%clk 0:01:05]}  e4 {[%clk 0:01:09]} 31. f3 {[%clk 0:01:04]}  h6 {[%clk 0:01:07]} 32. Nxe4+ {[%clk 0:00:53]}  fxe4 {[%clk 0:01:07]} 33. fxe4 {[%clk 0:00:54]}  Ke5 {[%clk 0:01:07]} 34. Ke3 {[%clk 0:00:53]}  g5 {[%clk 0:01:07]} 35. Bd7 {[%clk 0:00:52]}  Nb3 {[%clk 0:01:04]} 36. Bb5 {[%clk 0:00:52]}  Nc5 {[%clk 0:01:03]} 37. a5 {[%clk 0:00:48]}  Nxe4 {[%clk 0:01:03]} 0-1


[Site "https://www.chess.com"]